bitfinex/quotes_SOLUSD_20251117
["timestamp","ask_amount","ask_price","bid_price","bid_amount"]
[1763411771349,10.49882769,130.44,130.35,18.12096]
[1763411771572,9.78882769,130.43,130.42,18.12096]
[1763411771777,24.59224156,130.43,130.41,18.12096]
[1763411772072,0.66,130.42,130.41,18.12096]
[1763411772796,0.66,130.42,130.4,14.14341387]
[1763411772797,0.66,130.42,130.39,32.26437387]
[1763411772992,0.66,130.42,130.36,18.12096]
[1763411773289,0.66,130.42,130.39,32.26437387]
[1763411773989,0.66,130.42,130.39,18.12096]
[1763411774864,23.93224156,130.41,130.32,14.14341387]
[1763411775089,14.14341387,130.4,130.35,14.14341387]
[1763411775263,14.80341387,130.4,130.35,14.14341387]
[1763411775459,0.66,130.39,130.35,14.14341387]
[1763411775663,0.66,130.39,130.3,9.78882769]
[1763411775664,9.78882769,130.38,130.24,9.30615777]
[1763411775890,14.14341387,130.36,130.24,4.66]
[1763411776092,14.14341387,130.36,130.31,14.14341387]
[1763411776258,0.66,130.35,130.34,18.12096]
[1763411776458,0.66,130.35,130.34,17.40096]
[1763411776682,14.80341387,130.35,130.3,14.14341387]
[1763411776862,0.66,130.34,130.3,14.14341387]
[1763411777056,0.66,130.34,130.31,14.14341387]
[1763411777289,0.66,130.37,130.32,14.14341387]
[1763411777492,14.14341387,130.38,130.33,14.14341387]
[1763411777790,0.66,130.39,130.35,14.14341387]
[1763411778195,0.66,130.39,130.36,14.14341387]
[1763411778566,0.66,130.39,130.36,32.26437387]
[1763411778965,0.66,130.39,130.36,18.12096]
[1763411779170,14.80341387,130.39,130.36,18.12096]
[1763411779593,0.71,130.38,130.36,18.12096]
[1763411779896,0.71,130.39,130.36,32.26437387]
[1763411780094,0.71,130.39,130.38,18.12096]
[1763411780307,0.71,130.41,130.38,18.12096]
[1763411780605,0.71,130.4,130.38,18.12096]
[1763411780898,0.71,130.4,130.36,14.14341387]
[1763411781068,0.71,130.4,130.37,14.14341387]
[1763411781266,0.71,130.4,130.35,18.12096]
[1763411781267,14.85341387,130.43,130.39,14.14341387]
[1763411781464,0.71,130.43,130.4,14.14341387]
[1763411781667,9.78882769,130.45,130.42,14.14341387]
[1763411781896,0.71,130.46,130.42,14.14341387]
[1763411782198,42.21640515,130.52,130.39,0.66]
[1763411782199,0.71,130.48,130.45,14.14341387]
[1763411782389,0.71,130.5,130.47,14.14341387]
[1763411782569,0.71,130.5,130.49,14.14341387]
[1763411782774,0.71,130.5,130.48,32.26437387]
[1763411783203,0.71,130.52,130.49,14.14341387]
[1763411783389,0.71,130.52,130.51,18.12096]
[1763411783895,0.71,130.52,130.46,18.12096]
[1763411784079,0.2,130.54,130.5,14.14341387]
[1763411784278,0.2,130.54,130.53,32.26437387]
[1763411784495,0.2,130.57,130.53,32.26437387]
[1763411784697,0.71,130.61,130.59,18.12096]
[1763411784915,0.71,130.66,130.6,14.14341387]
[1763411785205,0.71,130.64,130.63,14.14341387]
[1763411785391,0.71,130.73,130.63,14.14341387]
[1763411785566,4.72254329,130.72,130.67,14.14341387]
[1763411785997,0.71,130.71,130.67,14.14341387]
[1763411786502,14.85341387,130.71,130.62,32.26437387]
[1763411786707,9.78882769,130.68,130.62,18.12096]
[1763411787094,0.71,130.68,130.66,14.14341387]
[1763411787679,0.71,130.72,130.67,14.14341387]
[1763411787900,0.71,130.72,130.64,0.66]
[1763411788094,9.78882769,130.71,130.67,14.14341387]
[1763411788412,6.16416386,130.76,130.64,0.66]
[1763411788413,4.72095378,130.76,130.7,32.26437387]
[1763411788623,0.2,130.78,130.75,14.14341387]
[1763411788806,0.2,130.78,130.77,18.12096]
[1763411789305,0.2,130.78,130.77,14.14341387]
[1763411789678,0.91,130.78,130.73,18.12096]
[1763411789898,0.91,130.78,130.68,0.66]
[1763411790101,10.49882769,130.77,130.76,18.12096]
[1763411790327,0.71,130.77,130.75,18.12096]
[1763411790506,0.71,130.76,130.75,18.12096]
[1763411790989,9.78882769,130.75,130.66,0.66]
[1763411791192,14.14341387,130.74,130.68,14.14341387]
[1763411791395,9.78882769,130.72,130.65,14.14341387]
[1763411791715,9.78882769,130.72,130.6,0.66]
[1763411791716,23.93224156,130.69,130.66,18.12096]
[1763411792010,23.93224156,130.67,130.57,0.66]
[1763411792217,9.78882769,130.65,130.57,0.66]
[1763411792376,9.78882769,130.65,130.58,14.14341387]
[1763411792580,9.78882769,130.68,130.64,18.12096]
[1763411792816,9.78882769,130.68,130.64,14.14341387]
[1763411792982,10.49882769,130.7,130.62,18.12096]
[1763411793306,10.49882769,130.7,130.61,0.66]
[1763411793307,9.78882769,130.7,130.65,32.26437387]
[1763411793618,10.49882769,130.7,130.62,18.12096]
[1763411793909,10.49882769,130.7,130.66,14.14341387]
[1763411794126,10.49882769,130.7,130.67,18.12096]
[1763411794281,0.71,130.69,130.68,18.12096]
[1763411795018,9.78882769,130.68,130.58,0.66]
[1763411795322,0.71,130.69,130.64,18.12096]
[1763411795510,9.78882769,130.67,130.59,0.66]
[1763411795712,9.78882769,130.66,130.63,18.12096]
[1763411795918,9.78882769,130.69,130.64,32.26437387]
[1763411796125,9.78882769,130.7,130.67,18.12096]
[1763411796288,10.49882769,130.7,130.67,18.12096]
[1763411796489,0.71,130.69,130.68,18.12096]
[1763411797186,9.78882769,130.71,130.67,14.14341387]
[1763411797487,0.71,130.71,130.67,14.14341387]
[1763411797685,0.71,130.71,130.64,0.66]
[1763411797686,0.71,130.76,130.7,14.14341387]
[1763411797990,0.71,130.76,130.73,32.26437387]
[1763411798213,0.71,130.76,130.71,18.12096]
[1763411798389,0.2,130.78,130.74,14.14341387]
[1763411798590,0.91,130.78,130.74,14.14341387]
[1763411798994,0.71,130.77,130.69,18.12096]
[1763411799315,10.49882769,130.77,130.76,18.12096]
[1763411799817,9.78882769,130.76,130.71,14.14341387]
[1763411800114,24.64224156,130.76,130.73,18.12096]
[1763411800290,23.93224156,130.74,130.68,14.14341387]
[1763411800495,14.14341387,130.73,130.67,14.14341387]
[1763411800813,0.71,130.73,130.7,18.12096]
[1763411801195,0.71,130.73,130.71,18.12096]
[1763411801715,0.72,130.73,130.71,18.12096]
[1763411801926,0.72,130.73,130.7,18.12096]
[1763411802321,9.78882769,130.72,130.68,14.14341387]
[1763411802511,9.78882769,130.72,130.69,18.12096]
[1763411802712,9.78882769,130.73,130.69,18.12096]
[1763411802913,0.72,130.71,130.7,18.12096]
[1763411803118,9.78882769,130.74,130.7,18.12096]
[1763411803320,0.72,130.73,130.7,18.12096]
[1763411803721,0.72,130.73,130.69,14.14341387]
[1763411803927,0.72,130.73,130.66,0.68]
[1763411804127,0.72,130.73,130.69,14.14341387]
[1763411804511,0.72,130.73,130.66,0.68]
[1763411804709,0.72,130.73,130.65,14.14341387]
[1763411804710,14.14341387,130.71,130.65,14.14341387]
[1763411804913,9.78882769,130.7,130.65,14.14341387]
[1763411805214,0.72,130.73,130.68,18.12096]
[1763411805517,0.72,130.73,130.7,14.14341387]
[1763411805721,0.72,130.73,130.69,32.26437387]
[1763411805917,9.78882769,130.72,130.69,18.12096]
[1763411806120,23.93224156,130.72,130.69,18.12096]
[1763411806333,0.72,130.71,130.69,18.12096]
[1763411806535,9.78882769,130.7,130.66,14.14341387]
[1763411806720,0.72,130.69,130.67,18.12096]
[1763411806918,0.72,130.69,130.64,14.14341387]
[1763411807118,0.72,130.69,130.67,18.12096]
[1763411807324,0.72,130.69,130.61,0.68]
[1763411807507,0.72,130.69,130.64,14.14341387]
[1763411807708,0.72,130.69,130.67,18.12096]
[1763411808414,0.72,130.69,130.68,18.12096]
[1763411809821,9.78882769,130.71,130.67,14.14341387]
[1763411810017,0.72,130.72,130.68,14.14341387]
[1763411810243,0.72,130.71,130.68,32.26437387]
[1763411810445,0.72,130.71,130.68,18.12096]
[1763411811139,9.78882769,130.7,130.68,18.12096]
[1763411811440,23.93224156,130.7,130.68,18.12096]
[1763411811742,10.50882769,130.69,130.68,18.12096]
[1763411812042,0.2,130.78,130.68,14.82341387]
[1763411812245,14.14341387,130.76,130.72,18.12096]
[1763411812541,0.72,130.77,130.73,14.14341387]
[1763411812750,9.98882769,130.78,130.73,14.14341387]
[1763411812751,0.72,130.76,130.73,14.14341387]
[1763411813245,0.72,130.76,130.72,18.12096]
[1763411813246,0.72,130.76,130.72,14.14341387]
[1763411813616,0.72,130.76,130.71,18.12096]
[1763411813812,9.78882769,130.75,130.71,14.14341387]
[1763411814054,23.93224156,130.75,130.73,18.12096]
[1763411814225,9.78882769,130.73,130.72,18.12096]
[1763411814715,24.65224156,130.73,130.7,18.12096]
[1763411814914,9.78882769,130.71,130.7,18.12096]
[1763411815315,10.50882769,130.71,130.67,14.14341387]
[1763411815517,10.50882769,130.71,130.7,18.12096]
[1763411816020,14.14341387,130.74,130.6,9.78882769]
[1763411816021,9.78882769,130.73,130.69,14.14341387]
[1763411816347,9.78882769,130.73,130.69,18.12096]
[1763411816550,0.72,130.72,130.69,18.12096]
[1763411817117,9.78882769,130.71,130.69,18.12096]
[1763411817754,0.72,130.71,130.69,18.12096]
[1763411819048,9.78882769,130.76,130.72,18.12096]
[1763411819230,0.72,130.75,130.72,18.12096]
[1763411819834,0.72,130.75,130.71,8.96933592]
[1763411820029,9.78882769,130.74,130.71,18.12096]
[1763411820230,18.75816361,130.74,130.64,0.68]
[1763411820436,9.78882769,130.72,130.67,8.96933592]
[1763411820637,9.78882769,130.72,130.61,9.78882769]
[1763411820638,0.72,130.71,130.69,18.12096]
[1763411820926,0.72,130.71,130.64,0.68]
[1763411821236,9.78882769,130.7,130.66,8.96933592]
[1763411821436,18.75816361,130.7,130.64,8.96933592]
[1763411821641,0.72,130.69,130.65,8.96933592]
[1763411821830,0.72,130.69,130.66,18.12096]
[1763411822031,9.78882769,130.72,130.67,8.96933592]
[1763411822332,0.72,130.71,130.67,27.09029592]
[1763411823359,9.78882769,130.72,130.7,18.12096]
[1763411823528,10.50882769,130.72,130.7,18.12096]
[1763411823728,0.72,130.71,130.7,18.12096]
[1763411824251,0.72,130.71,130.67,27.09029592]
[1763411824963,0.72,130.71,130.61,9.78882769]
[1763411824964,9.78882769,130.74,130.72,18.12096]
[1763411825129,0.72,130.77,130.72,8.96933592]
[1763411825334,0.72,130.77,130.67,18.80096]
[1763411825537,18.75816361,130.76,130.73,18.12096]
[1763411825750,18.75816361,130.76,130.71,18.12096]
[1763411825944,9.78882769,130.74,130.71,18.12096]
[1763411826262,9.78882769,130.74,130.72,18.12096]
[1763411826438,0.72,130.75,130.72,27.09029592]
[1763411826642,9.98882769,130.78,130.73,8.96933592]
[1763411826852,10.70882769,130.78,130.73,8.96933592]
[1763411827062,0.72,130.77,130.73,8.96933592]
[1763411827639,9.68933592,130.77,130.71,8.96933592]
[1763411827837,9.68933592,130.77,130.68,18.12096]
[1763411827838,18.75816361,130.75,130.68,18.12096]
[1763411828057,18.75816361,130.75,130.64,0.68]
[1763411828255,18.75816361,130.75,130.69,8.96933592]
[1763411828256,9.78882769,130.73,130.69,8.96933592]
[1763411828458,9.78882769,130.73,130.69,18.12096]
[1763411828636,0.72,130.72,130.69,18.12096]
[1763411829041,10.50882769,130.72,130.71,18.12096]
[1763411829341,8.96933592,130.74,130.71,18.12096]
[1763411829342,9.78882769,130.74,130.71,18.12096]
[1763411829540,10.50882769,130.74,130.71,18.12096]
[1763411829741,10.50882769,130.74,130.71,8.96933592]
[1763411830147,9.78882769,130.74,130.7,27.09029592]
[1763411830474,9.78882769,130.72,130.7,18.12096]
[1763411830762,0.72,130.73,130.7,27.09029592]
[1763411831064,9.78882769,130.72,130.7,27.09029592]
[1763411831272,10.50882769,130.72,130.7,18.12096]
[1763411831475,0.72,130.76,130.73,18.12096]
[1763411831644,9.78882769,130.75,130.73,18.12096]
[1763411831841,10.48882769,130.74,130.73,18.12096]
[1763411832235,9.78882769,130.74,130.73,18.12096]
[1763411832461,0.7,130.76,130.73,18.12096]
[1763411832662,9.78882769,130.74,130.67,0.7]
[1763411832879,9.66933592,130.75,130.73,18.12096]
[1763411833164,0.2,130.78,130.7,18.12096]
[1763411833165,9.78882769,130.76,130.7,18.12096]
[1763411833468,18.75816361,130.76,130.74,18.12096]
[1763411833642,9.78882769,130.76,130.74,18.12096]
[1763411833833,0.7,130.75,130.72,18.12096]
[1763411834035,9.66933592,130.75,130.72,18.12096]
[1763411834431,9.78882769,130.76,130.73,18.12096]
[1763411834432,19.45816361,130.74,130.73,18.12096]
[1763411834637,19.45816361,130.74,130.72,18.12096]
[1763411834854,0.7,130.73,130.72,18.12096]
[1763411835250,9.78882769,130.72,130.68,18.12096]
[1763411835563,18.75816361,130.72,130.7,18.12096]
[1763411835878,9.78882769,130.74,130.7,27.09029592]
[1763411836044,9.78882769,130.74,130.7,8.96933592]
[1763411836458,0.7,130.73,130.69,27.09029592]
[1763411836940,18.75816361,130.72,130.68,18.12096]
[1763411837166,0.7,130.73,130.68,27.09029592]
[1763411837334,8.96933592,130.76,130.72,18.12096]
[1763411837534,0.7,130.76,130.74,18.12096]
[1763411837768,9.98882769,130.78,130.73,9.63933592]
[1763411837969,0.2,130.78,130.76,8.96933592]
[1763411838269,0.2,130.78,130.75,27.09029592]
[1763411839495,0.85,130.78,130.75,18.12096]
[1763411839655,18.75816361,130.77,130.72,8.96933592]
[1763411839867,18.75816361,130.76,130.69,0.67]
[1763411840060,9.78882769,130.74,130.7,8.96933592]
[1763411840284,9.78882769,130.74,130.73,18.12096]
[1763411840491,9.78882769,130.74,130.67,8.53834451]
[1763411840492,9.78882769,130.72,130.67,8.53834451]
[1763411840655,9.78882769,130.72,130.66,8.53834451]
[1763411840866,9.78882769,130.72,130.64,12.79962919]
[1763411840867,9.78882769,130.68,130.64,8.53834451]
[1763411841082,9.78882769,130.7,130.67,18.12096]
[1763411841283,9.78882769,130.68,130.67,18.12096]
[1763411841674,19.40816361,130.68,130.63,17.50768043]
[1763411841868,9.78882769,130.69,130.65,8.96933592]
[1763411842088,0.65,130.71,130.65,8.96933592]
[1763411842274,8.96933592,130.68,130.64,8.53834451]
[1763411842591,18.75816361,130.69,130.64,8.53834451]
[1763411842795,19.40816361,130.69,130.64,9.20834451]
[1763411842967,19.40816361,130.69,130.67,18.12096]
[1763411843168,8.96933592,130.68,130.63,8.53834451]
[1763411843494,8.96933592,130.7,130.68,18.12096]
[1763411843868,0.65,130.7,130.68,18.12096]
[1763411844067,18.75816361,130.71,130.67,18.12096]
[1763411844380,19.40816361,130.7,130.66,8.53834451]
[1763411844581,19.40816361,130.7,130.67,18.12096]
[1763411844966,19.40816361,130.7,130.64,18.17768043]
[1763411845166,19.40816361,130.7,130.68,18.12096]
[1763411845367,9.78882769,130.68,130.67,18.12096]
[1763411845673,18.75816361,130.68,130.63,17.50768043]
[1763411845877,18.75816361,130.68,130.66,18.12096]
[1763411846281,19.40816361,130.68,130.66,18.12096]
[1763411846470,9.61933592,130.69,130.67,18.12096]
[1763411846689,8.96933592,130.69,130.67,18.12096]
[1763411846868,9.61933592,130.69,130.67,18.12096]
[1763411847062,9.61933592,130.68,130.67,18.12096]
[1763411847493,8.96933592,130.69,130.67,18.12096]
[1763411848002,8.96933592,130.7,130.68,18.12096]
[1763411848221,0.65,130.75,130.68,27.76029592]
[1763411848370,8.96933592,130.74,130.68,18.79096]
[1763411848572,8.96933592,130.75,130.72,18.12096]
[1763411848771,0.65,130.77,130.74,18.12096]
[1763411849406,9.78882769,130.74,130.69,8.53834451]
[1763411849612,8.96933592,130.73,130.71,18.12096]
[1763411849894,18.75816361,130.72,130.71,18.12096]
[1763411850196,10.43882769,130.72,130.71,18.12096]
[1763411850584,0.65,130.72,130.71,18.12096]
[1763411851204,9.61933592,130.72,130.66,17.50768043]
[1763411851378,8.96933592,130.71,130.69,18.12096]
[1763411851778,9.61933592,130.71,130.69,18.12096]
[1763411851982,8.96933592,130.71,130.69,18.12096]
[1763411852201,0.65,130.7,130.69,18.12096]
[1763411852577,9.61933592,130.7,130.65,17.50768043]
[1763411852927,8.96933592,130.69,130.68,18.12096]
[1763411853102,9.78882769,130.68,130.63,8.53834451]
[1763411853311,18.75816361,130.68,130.63,17.50768043]
[1763411853609,18.75816361,130.66,130.61,17.50768043]
[1763411853785,9.78882769,130.66,130.61,17.50768043]
[1763411853984,9.61933592,130.65,130.62,8.53834451]
[1763411854225,9.61933592,130.65,130.61,8.53834451]
[1763411854394,0.65,130.65,130.61,26.65930451]
[1763411854722,9.61933592,130.65,130.61,18.12096]
[1763411855026,18.12096,130.71,130.61,18.12096]
[1763411855027,8.96933592,130.63,130.61,18.12096]
[1763411855517,0.65,130.63,130.61,18.12096]
[1763411855720,9.61933592,130.63,130.61,18.12096]
[1763411856102,0.65,130.63,130.61,18.12096]
[1763411857515,9.61933592,130.63,130.61,18.12096]
[1763411857991,9.61933592,130.62,130.56,17.50768043]
[1763411858293,9.78882769,130.58,130.53,8.53834451]
[1763411858495,18.75816361,130.58,130.53,8.96933592]
[1763411858701,18.75816361,130.58,130.53,0.67]
[1763411858903,0.65,130.59,130.54,18.12096]
[1763411859119,8.96933592,130.58,130.54,18.12096]
[1763411859496,9.61933592,130.58,130.53,8.96933592]
[1763411859833,9.61933592,130.58,130.57,18.12096]
[1763411859993,9.61933592,130.58,130.54,27.09029592]
[1763411859994,0.65,130.57,130.52,8.96933592]
[1763411860194,9.61933592,130.57,130.52,8.96933592]
[1763411860401,9.61933592,130.57,130.55,18.12096]
[1763411860598,19.40816361,130.56,130.55,18.12096]
[1763411860818,38.17435483,130.67,130.53,8.96933592]
[1763411860819,0.65,130.58,130.53,8.96933592]
[1763411861124,8.96933592,130.58,130.54,18.12096]
[1763411861508,8.96933592,130.59,130.57,18.12096]
[1763411861724,9.63933592,130.59,130.57,18.12096]
[1763411861918,18.75816361,130.58,130.57,18.12096]
[1763411862118,19.42816361,130.58,130.56,18.12096]
[1763411862728,8.96933592,130.58,130.56,18.12096]
[1763411862928,8.96933592,130.59,130.57,18.12096]
[1763411863326,0.67,130.58,130.57,18.12096]
[1763411863515,9.63933592,130.58,130.57,18.12096]
[1763411863722,9.63933592,130.58,130.53,27.80029592]
[1763411864035,18.75816361,130.59,130.54,0.71]
[1763411864340,19.42816361,130.59,130.57,18.12096]
[1763411865041,9.63933592,130.58,130.53,8.96933592]
[1763411865242,0.67,130.58,130.53,8.96933592]
[1763411865421,9.63933592,130.58,130.53,9.67933592]
[1763411865621,0.67,130.58,130.53,9.67933592]
[1763411865819,8.96933592,130.57,130.53,0.71]
[1763411866217,0.67,130.56,130.52,8.96933592]
[1763411866428,9.63933592,130.56,130.51,8.96933592]
[1763411866743,9.63933592,130.56,130.41,97.67173669]
[1763411866744,9.78882769,130.57,130.53,27.09029592]
[1763411866924,0.67,130.56,130.49,0.71]
[1763411867124,0.67,130.56,130.48,8.96933592]
[1763411867125,9.78882769,130.55,130.48,8.96933592]
[1763411867325,9.78882769,130.55,130.49,8.96933592]
[1763411867326,8.96933592,130.53,130.49,8.96933592]
[1763411867530,9.78882769,130.55,130.53,18.12096]
[1763411867717,19.42816361,130.55,130.53,18.12096]
[1763411867918,19.42816361,130.54,130.53,18.12096]
[1763411868141,19.42816361,130.54,130.48,0.71]
[1763411868351,8.96933592,130.56,130.54,18.12096]
[1763411868519,111.66933592,130.58,130.54,18.12096]
[1763411868714,102.7,130.58,130.55,27.09029592]
[1763411869145,102.7,130.58,130.54,0.71]
[1763411869628,112.33933592,130.58,130.54,0.71]
[1763411869834,111.66933592,130.58,130.52,8.96933592]
[1763411870043,8.96933592,130.53,130.47,18.83096]
[1763411870249,8.96933592,130.54,130.48,8.96933592]
[1763411870425,8.96933592,130.53,130.48,0.71]
[1763411870935,8.96933592,130.52,130.46,18.12096]
[1763411871151,9.63933592,130.53,130.47,8.96933592]
[1763411871452,8.96933592,130.51,130.46,8.96933592]
[1763411871614,8.96933592,130.51,130.46,0.71]
[1763411871615,9.63933592,130.51,130.46,0.71]
[1763411871822,8.96933592,130.5,130.43,0.1]
[1763411872022,8.96933592,130.49,130.43,9.77933592]
[1763411872260,8.96933592,130.49,130.43,0.81]
[1763411872261,8.96933592,130.48,130.43,0.81]
[1763411872547,18.75816361,130.49,130.43,9.77933592]
[1763411872761,8.96933592,130.48,130.43,0.81]
[1763411873122,0.67,130.47,130.43,0.1]
[1763411873314,9.63933592,130.47,130.43,0.1]
[1763411873521,8.96933592,130.46,130.43,0.1]
[1763411873835,8.96933592,130.45,130.43,0.1]
[1763411874547,9.63933592,130.45,130.43,0.1]
[1763411874921,8.96933592,130.45,130.43,0.1]
[1763411875120,27.76029592,130.47,130.43,0.1]
[1763411875760,18.79096,130.47,130.43,0.1]
[1763411876278,9.78882769,130.49,130.43,9.77933592]
[1763411876558,36.87912361,130.49,130.43,9.77933592]
[1763411877062,19.42816361,130.49,130.43,9.77933592]
[1763411877266,18.75816361,130.48,130.43,0.81]
[1763411878329,8.96933592,130.47,130.43,0.1]
[1763411878527,18.75816361,130.46,130.43,0.1]
[1763411878774,8.96933592,130.46,130.43,0.1]
[1763411878932,32.23046506,130.48,130.43,0.81]
[1763411879348,32.90046506,130.48,130.43,0.81]
[1763411879553,32.23046506,130.48,130.43,0.1]
[1763411879860,0.67,130.47,130.43,0.1]
[1763411880351,14.10950506,130.46,130.43,0.1]
[1763411880554,14.77950506,130.47,130.43,0.1]
[1763411880757,0.67,130.47,130.43,0.1]
[1763411880963,14.77950506,130.47,130.43,0.1]
[1763411881265,24.21630375,130.47,130.43,0.1]
[1763411881754,23.89833275,130.47,130.43,0.1]
[1763411882061,14.10950506,130.47,130.43,0.1]
[1763411882247,18.12096,130.48,130.44,0.71]
[1763411882248,32.23046506,130.48,130.44,0.71]
[1763411882454,14.10950506,130.48,130.44,0.71]
[1763411882981,14.10950506,130.5,130.44,14.81950506]
[1763411883554,14.10950506,130.47,130.43,0.1]
[1763411883768,14.10950506,130.45,130.43,0.1]
[1763411883967,14.10950506,130.44,130.43,0.1]
[1763411884764,14.77950506,130.44,130.43,0.1]
[1763411885081,14.10950506,130.44,130.43,0.1]
[1763411886641,14.77950506,130.44,130.43,0.1]
[1763411887040,14.10950506,130.44,130.43,0.1]
[1763411887672,14.10950506,130.45,130.43,0.1]
[1763411888474,14.10950506,130.44,130.43,0.1]
[1763411889242,14.77950506,130.44,130.43,0.1]
[1763411889759,24.56833275,130.44,130.43,0.1]
[1763411890783,18.12096,130.42,130.34,0.71]
[1763411890957,14.10950506,130.38,130.34,0.71]
[1763411891544,9.78882769,130.36,130.31,0.7]
[1763411891770,14.10950506,130.35,130.29,0.1]
[1763411891977,9.78882769,130.35,130.3,0.7]
[1763411892184,23.89833275,130.35,130.3,0.7]
[1763411892389,0.67,130.34,130.29,0.1]
[1763411892559,23.89833275,130.35,130.29,14.90950506]
[1763411892767,18.12096,130.37,130.29,14.90950506]
[1763411892768,23.89833275,130.34,130.29,14.90950506]
[1763411892973,23.89833275,130.34,130.29,0.8]
[1763411893172,23.89833275,130.34,130.3,0.7]
[1763411893676,23.89833275,130.34,130.29,0.1]
[1763411893677,14.10950506,130.31,130.29,0.1]
[1763411894196,6.06255414,130.4,130.29,0.1]
[1763411894197,24.56833275,130.3,130.29,0.1]
[1763411898906,24.56833275,130.3,130.2,0.8]
[1763411898907,27.90978769,130.26,130.2,0.1]
[1763411899064,23.89833275,130.21,130.2,0.1]
[1763411899271,24.59833275,130.21,130.2,0.1]
[1763411899802,24.59833275,130.21,130.05,14.30269947]
[1763411899803,9.78882769,130.2,130.12,14.80950506]
[1763411900004,14.10950506,130.17,130.13,0.7]
[1763411900208,10.48882769,130.2,130.13,0.7]
[1763411900209,14.10950506,130.18,130.13,0.7]
[1763411900507,14.10950506,130.17,130.13,0.7]
[1763411900878,9.78882769,130.18,130.13,0.7]
[1763411900879,23.89833275,130.18,130.13,14.80950506]
[1763411901105,14.10950506,130.22,130.17,14.10950506]
[1763411901310,9.78882769,130.23,130.19,14.10950506]
[1763411901672,0.7,130.25,130.2,0.7]
[1763411901911,14.10950506,130.26,130.21,14.10950506]
[1763411902206,9.78882769,130.26,130.22,14.10950506]
[1763411902382,23.89833275,130.26,130.21,14.10950506]
[1763411902874,23.89833275,130.26,130.21,14.80950506]
[1763411903079,23.89833275,130.24,130.19,14.80950506]
[1763411903481,23.89833275,130.21,130.15,0.7]
[1763411903687,14.10950506,130.19,130.15,0.7]
[1763411903912,0.7,130.23,130.05,14.30269947]
[1763411903913,23.89833275,130.18,130.13,14.80950506]
[1763411904093,23.89833275,130.18,130.14,0.7]
[1763411904494,24.59833275,130.18,130.13,14.10950506]
[1763411904687,23.89833275,130.18,130.14,0.7]
[1763411905525,23.89833275,130.16,130.11,32.93046506]
[1763411905716,9.78882769,130.16,130.11,32.93046506]
[1763411906015,23.89833275,130.16,130.12,0.7]
[1763411906581,0.7,130.18,130.12,14.80950506]
[1763411906785,14.10950506,130.17,130.12,14.80950506]
[1763411906986,14.10950506,130.18,130.13,14.80950506]
[1763411907189,56.40814201,130.31,130.15,18.12096]
[1763411907190,0.7,130.24,130.15,18.12096]
[1763411907405,14.10950506,130.22,130.17,14.10950506]
[1763411907607,14.10950506,130.24,130.19,14.10950506]
[1763411907921,14.10950506,130.25,130.2,14.10950506]
[1763411908218,23.89833275,130.24,130.2,0.7]
[1763411908419,14.10950506,130.24,130.2,0.7]
[1763411908717,14.10950506,130.25,130.2,0.7]
[1763411909017,10.48882769,130.26,130.21,14.10950506]
[1763411909018,23.89833275,130.26,130.21,14.10950506]
[1763411909201,14.80950506,130.26,130.21,14.80950506]
[1763411909518,14.10950506,130.25,130.21,0.7]
[1763411909899,9.78882769,130.27,130.21,0.7]
[1763411910090,14.10950506,130.26,130.21,14.80950506]
[1763411910294,14.10950506,130.27,130.22,14.10950506]
[1763411910503,14.10950506,130.27,130.22,14.80950506]
[1763411910702,10.48882769,130.29,130.2,0.7]
[1763411910703,14.80950506,130.26,130.2,0.7]
[1763411910900,14.10950506,130.25,130.2,14.80950506]
[1763411911101,14.80950506,130.25,130.2,0.7]
[1763411911494,14.10950506,130.25,130.2,0.7]
[1763411911703,14.10950506,130.24,130.2,0.7]
[1763411912190,14.80950506,130.25,130.2,14.80950506]
[1763411912400,14.80950506,130.25,130.2,0.7]
[1763411913823,14.80950506,130.25,130.2,14.80950506]
[1763411914192,24.34649379,130.3,130.24,18.12096]
[1763411914193,14.10950506,130.27,130.24,18.12096]
[1763411914414,0.7,130.28,130.24,18.12096]